bitfinex/quotes_BTCUSD_20230906
["timestamp","ask_amount","ask_price","bid_price","bid_amount"]
[1694041386722,0.02596298,25763.0,25762.0,3.45257898]
[1694041387492,0.02596298,25763.0,25762.0,3.42226527]
[1694041394529,0.02596298,25763.0,25762.0,3.03562]
[1694041398587,0.11916681,25763.0,25762.0,3.03562]
[1694041401645,0.02596298,25763.0,25762.0,3.03562]
[1694041402662,0.02596298,25763.0,25762.0,3.01262]
[1694041403080,0.11916681,25763.0,25762.0,3.01262]
[1694041403302,0.02596298,25763.0,25762.0,3.01262]
[1694041405476,0.11916681,25763.0,25762.0,3.01262]
[1694041405714,0.02596298,25763.0,25762.0,3.01262]
[1694041407694,0.014,25763.0,25762.0,3.01262]
[1694041408710,0.014,25763.0,25762.0,2.83262]
[1694041408916,1.23077141,25763.0,25762.0,0.049]
[1694041409120,1.12253762,25763.0,25762.0,0.049]
[1694041409520,1.13441187,25763.0,25762.0,0.049]
[1694041409719,1.13041187,25763.0,25760.0,1.552757]
[1694041409919,0.18627885,25761.0,25760.0,1.552757]
[1694041410522,0.32596069,25761.0,25760.0,1.552757]
[1694041411073,0.18627885,25761.0,25760.0,1.552757]
[1694041411248,0.26046945,25761.0,25760.0,1.552757]
[1694041411510,0.26246945,25761.0,25760.0,1.577757]
[1694041411740,0.32793801,25761.0,25760.0,1.577757]
[1694041412702,0.32793801,25761.0,25760.0,0.826376]
[1694041413792,0.14165916,25761.0,25760.0,0.826376]
[1694041414731,0.14165916,25761.0,25760.0,0.05]
[1694041414732,2.20240428,25761.0,25760.0,0.05]
[1694041415198,2.38868313,25761.0,25760.0,0.05]
[1694041415391,1.59379137,25761.0,25760.0,0.05]
[1694041415618,1.79168866,25761.0,25760.0,0.05]
[1694041416439,1.5588401,25761.0,25760.0,0.05]
[1694041417529,1.48427541,25761.0,25760.0,0.05]
[1694041418665,1.62381721,25761.0,25760.0,0.05]
[1694041420416,1.18484822,25761.0,25760.0,0.05]
[1694041420859,0.15331479,25761.0,25760.0,0.826397]
[1694041421008,0.15331479,25761.0,25760.0,1.602794]
[1694041421445,0.24633097,25761.0,25760.0,1.602794]
[1694041421644,0.10678917,25761.0,25760.0,1.602794]
[1694041422021,0.10678917,25761.0,25760.0,1.723594]
[1694041422225,0.10678917,25761.0,25760.0,2.499991]
[1694041422430,0.01377299,25761.0,25760.0,2.499991]
[1694041425822,0.01377299,25761.0,25760.0,3.33043627]
[1694041426143,0.002,25761.0,25760.0,3.33043627]
[1694041426376,0.002,25761.0,25760.0,3.73903627]
[1694041426578,0.002,25761.0,25760.0,3.79903627]
[1694041426782,0.002,25761.0,25760.0,3.83786627]
[1694041427368,0.01,25763.0,25760.0,3.81286627]
[1694041427575,0.01,25763.0,25762.0,0.15963]
[1694041427774,0.01,25763.0,25762.0,3.264978]
[1694041428892,0.01,25763.0,25762.0,3.289978]
[1694041430384,0.01,25763.0,25762.0,3.614978]
[1694041432820,0.01,25763.0,25762.0,3.637978]
[1694041434825,0.02195424,25763.0,25762.0,3.637978]
[1694041435020,0.01,25763.0,25762.0,3.637978]
[1694041435925,0.01,25763.0,25762.0,3.632978]
[1694041436496,0.0219436,25763.0,25762.0,3.632978]
[1694041452212,0.01,25763.0,25762.0,3.632978]
[1694041454079,0.01,25763.0,25762.0,4.42822327]
[1694041458451,0.02164901,25763.0,25762.0,4.42822327]
[1694041460951,0.01,25763.0,25762.0,4.42822327]
[1694041461152,0.01,25763.0,25762.0,5.64745318]
[1694041461396,0.04679624,25763.0,25762.0,3.79824091]
[1694041461610,0.04679624,25763.0,25762.0,1.902674]
[1694041461611,0.10301618,25763.0,25762.0,1.902674]
[1694041461985,0.25428392,25763.0,25762.0,1.902674]
[1694041462505,0.25428392,25763.0,25762.0,1.941504]
[1694041462835,0.16122497,25763.0,25762.0,1.941504]
[1694041464652,0.34734287,25763.0,25762.0,1.941504]
[1694041465589,0.20775445,25763.0,25762.0,1.941504]
[1694041466577,0.30411589,25763.0,25762.0,1.941504]
[1694041467803,0.53676326,25763.0,25762.0,1.941504]
[1694041468577,0.53676326,25763.0,25762.0,2.717841]
[1694041469184,0.53676326,25763.0,25762.0,2.679011]
[1694041469590,0.35064536,25763.0,25762.0,2.679011]
[1694041469805,1.73359421,25763.0,25762.0,0.05]
[1694041470013,3.11660585,25763.0,25762.0,0.05]
[1694041470267,3.29844139,25763.0,25762.0,0.05]
[1694041470676,3.01926454,25763.0,25762.0,0.05]
[1694041471055,3.11692599,25763.0,25762.0,0.05]
[1694041475755,2.837429,25763.0,25762.0,0.05]
[1694041476916,2.837429,25763.0,25762.0,0.08883]
[1694041479225,1.99813978,25763.0,25762.0,0.08883]
[1694041485948,1.99813978,25763.0,25762.0,0.06383]
[1694041486749,1.99813978,25763.0,25762.0,0.08883]
[1694041487179,1.99813978,25763.0,25762.0,0.06383]
[1694041487382,1.99813978,25763.0,25762.0,0.08883]
[1694041487887,1.99813978,25763.0,25762.0,0.06383]
[1694041488316,1.99813978,25763.0,25762.0,0.08883]
[1694041488528,1.22183278,25763.0,25762.0,0.08883]
[1694041490075,1.22183278,25763.0,25762.0,2.538641]
[1694041490076,0.30407473,25763.0,25762.0,2.538641]
[1694041490277,0.20771329,25763.0,25762.0,2.417841]
[1694041490874,0.20771329,25763.0,25762.0,1.641504]
[1694041491307,0.3472724,25763.0,25762.0,1.641504]
[1694041491633,0.20771329,25763.0,25762.0,1.641504]
[1694041492616,0.34727663,25763.0,25762.0,0.08883]
[1694041492867,0.50603275,25763.0,25762.0,0.08883]
[1694041493100,0.36646941,25763.0,25762.0,0.08883]
[1694041494454,0.36646941,25763.0,25762.0,1.641504]
[1694041494455,0.46473881,25763.0,25762.0,1.641504]
[1694041494744,0.53857862,25763.0,25762.0,1.641504]
[1694041494942,0.16121589,25763.0,25762.0,2.838641]
[1694041495145,0.11468593,25763.0,25762.0,2.838641]
[1694041495349,0.01,25763.0,25762.0,2.838641]
[1694041496068,0.01,25763.0,25762.0,2.813641]
[1694041496289,0.01,25763.0,25762.0,2.838641]
[1694041497050,0.01,25763.0,25762.0,2.813641]
[1694041497230,0.01,25763.0,25762.0,3.30828627]
[1694041498028,0.01,25763.0,25762.0,3.28328627]
[1694041498229,0.01,25763.0,25762.0,3.30828627]
[1694041499285,0.01,25763.0,25762.0,3.28328627]
[1694041499684,0.01,25763.0,25762.0,3.30828627]
[1694041500149,0.01,25763.0,25762.0,3.28328627]
[1694041500359,0.01,25763.0,25762.0,3.73688627]
[1694041500609,0.01,25763.0,25762.0,3.69188627]
[1694041501035,0.01,25763.0,25762.0,3.71688627]
[1694041501443,0.01,25763.0,25762.0,3.84726327]
[1694041501856,0.01,25763.0,25762.0,3.87226327]
[1694041512261,0.01,25763.0,25762.0,3.46366327]
[1694041512463,0.01,25763.0,25762.0,3.30828627]
[1694041512839,0.02010584,25763.0,25762.0,3.30828627]
[1694041515319,0.01,25763.0,25762.0,3.30828627]
[1694041516694,0.02009761,25763.0,25762.0,3.30828627]
[1694041532183,0.02503724,25763.0,25762.0,3.30828627]
[1694041535166,0.02942465,25763.0,25762.0,3.30828627]
[1694041539064,0.12247403,25763.0,25762.0,3.30828627]
[1694041540831,0.26205337,25763.0,25762.0,3.30828627]
[1694041542909,0.16900399,25763.0,25762.0,3.30828627]
[1694041553871,0.35508073,25763.0,25762.0,3.30828627]
[1694041554077,0.21550139,25763.0,25762.0,3.30828627]
[1694041554715,0.31440388,25763.0,25762.0,3.30828627]
[1694041555094,0.54699981,25763.0,25762.0,3.30828627]
[1694041555294,0.31440388,25763.0,25762.0,3.30828627]
[1694041556558,0.54699981,25763.0,25762.0,3.30828627]
[1694041557301,0.31440388,25763.0,25762.0,3.30828627]
[1694041557672,0.54699981,25763.0,25762.0,3.30828627]
[1694041559798,0.31440388,25763.0,25762.0,3.30828627]
[1694041560558,0.21550139,25763.0,25762.0,3.30828627]
[1694041563653,0.19607674,25763.0,25762.0,3.30828627]
[1694041566677,0.33590503,25763.0,25762.0,3.30828627]
[1694041573647,0.19607674,25763.0,25762.0,3.30828627]
[1694041574265,0.29439563,25763.0,25762.0,3.30828627]
[1694041576880,0.19607674,25763.0,25762.0,3.30828627]
[1694041578641,0.19607674,25763.0,25762.0,2.777841]
[1694041578642,0.34120448,25763.0,25762.0,2.777841]
[1694041580004,0.34120448,25763.0,25762.0,2.717841]
[1694041580206,0.34120448,25763.0,25762.0,2.777841]
[1694041582529,0.52759464,25763.0,25762.0,2.898641]
[1694041583616,0.29499871,25763.0,25762.0,2.898641]
[1694041585167,0.19639016,25763.0,25762.0,2.898641]
[1694041586705,0.29558044,25763.0,25762.0,2.898641]
[1694041588079,0.19639016,25763.0,25762.0,2.898641]
[1694041589555,0.29555228,25763.0,25762.0,2.898641]
[1694041591822,0.33621916,25763.0,25762.0,2.898641]
[1694041598638,0.19639016,25763.0,25762.0,2.898641]
[1694041599284,0.33623724,25763.0,25762.0,2.898641]
[1694041601498,0.14984708,25763.0,25762.0,2.898641]
[1694041601699,0.33623724,25763.0,25762.0,2.898641]
[1694041609225,0.14984708,25763.0,25762.0,2.898641]
[1694041611764,0.33623724,25763.0,25762.0,2.898641]
[1694041613435,0.14984708,25763.0,25762.0,2.898641]
[1694041614245,0.33623724,25763.0,25762.0,2.898641]
[1694041619345,0.14984708,25763.0,25762.0,2.898641]
[1694041621015,0.33623724,25763.0,25762.0,2.898641]
[1694041624851,0.14984708,25763.0,25762.0,2.898641]
[1694041625066,0.33623724,25763.0,25762.0,2.898641]
[1694041627071,0.33623724,25763.0,25762.0,2.777841]
[1694041627311,0.52760728,25763.0,25762.0,2.777841]
[1694041627601,0.5281677,25763.0,25762.0,2.717841]
[1694041628335,0.34170614,25763.0,25762.0,2.717841]
[1694041631932,0.34170614,25763.0,25762.0,2.838641]
[1694041640994,0.42952542,25763.0,25762.0,2.838641]
[1694041641139,0.52815461,25763.0,25762.0,2.838641]
[1694041648285,0.29507766,25763.0,25762.0,2.838641]
[1694041650885,0.52815461,25763.0,25762.0,2.838641]
[1694041651060,0.29507766,25763.0,25762.0,2.838641]
[1694041654293,0.52815461,25763.0,25762.0,2.85604664]
[1694041657290,0.29507766,25763.0,25762.0,2.85604664]
[1694041660476,0.33628629,25763.0,25762.0,2.85604664]
[1694041663993,0.14983782,25763.0,25762.0,2.85604664]
[1694041666684,0.24306194,25763.0,25762.0,2.85604664]
[1694041670926,0.14983782,25763.0,25762.0,2.85604664]
[1694041673820,0.24304855,25763.0,25762.0,2.85604664]
[1694041675213,0.19644847,25763.0,25762.0,2.85604664]
[1694041675418,0.29109792,25763.0,25762.0,2.85604664]
[1694041677565,0.19644847,25763.0,25762.0,2.85604664]
[1694041677815,0.33626577,25763.0,25762.0,2.85604664]
[1694041678235,0.19644847,25763.0,25762.0,2.85604664]
[1694041678440,0.33626614,25763.0,25762.0,2.85604664]
[1694041679271,0.19644847,25763.0,25762.0,2.85604664]
[1694041681744,0.33626914,25763.0,25762.0,2.85604664]
[1694041683993,0.33626914,25763.0,25762.0,2.86453783]
[1694041687251,0.14982067,25763.0,25762.0,2.86453783]
[1694041687921,0.33626914,25763.0,25762.0,2.86453783]
[1694041699331,0.19644847,25763.0,25762.0,2.86453783]
[1694041707184,0.29177342,25763.0,25762.0,2.86453783]
[1694041710418,0.29177342,25763.0,25762.0,2.74373783]
[1694041710605,0.29177342,25763.0,25762.0,2.86453783]
[1694041711885,0.01,25763.0,25762.0,2.86453783]
[1694041712083,0.19648074,25763.0,25762.0,2.86453783]
[1694041712287,0.29241054,25763.0,25762.0,2.86453783]
[1694041716018,0.01,25763.0,25762.0,2.86453783]
[1694041716240,0.19649317,25763.0,25762.0,2.86453783]
[1694041716436,0.29229982,25763.0,25762.0,2.86453783]
[1694041717599,0.29229982,25763.0,25762.0,2.8644033]
[1694041723313,0.28229982,25763.0,25762.0,2.8644033]
[1694041723517,0.18649317,25763.0,25762.0,2.8644033]
[1694041724272,0.23311646,25763.0,25762.0,2.8644033]
[1694041725247,0.41964406,25763.0,25762.0,2.8644033]
[1694041725468,0.51545071,25763.0,25762.0,2.8644033]
[1694041726029,0.41964406,25763.0,25762.0,2.8644033]
[1694041729873,0.28233425,25763.0,25762.0,2.8644033]
[1694041730355,0.1865276,25763.0,25762.0,2.8644033]
[1694041731091,0.41964406,25763.0,25762.0,2.8644033]
[1694041732680,0.23311646,25763.0,25762.0,2.8644033]
[1694041732894,0.4196421,25763.0,25762.0,2.8644033]
[1694041733639,0.4296421,25763.0,25762.0,2.8644033]
[1694041733843,0.52544875,25763.0,25762.0,2.8644033]
[1694041735132,0.33892311,25763.0,25762.0,2.8644033]
[1694041735936,0.42964094,25763.0,25762.0,2.8644033]
[1694041736066,0.52544759,25763.0,25762.0,2.8644033]
[1694041744539,0.33892311,25763.0,25762.0,2.8644033]
[1694041745266,0.52544683,25763.0,25762.0,2.8644033]
[1694041747346,0.33892311,25763.0,25762.0,2.8644033]
[1694041747765,0.4296394,25763.0,25762.0,2.8644033]
[1694041747982,0.52544605,25763.0,25762.0,2.8644033]
[1694041789502,0.51544605,25763.0,25762.0,2.8644033]
[1694041789708,0.4196394,25763.0,25762.0,2.8644033]
[1694041794826,0.4296394,25763.0,25762.0,2.8644033]
[1694041795001,0.52544605,25763.0,25762.0,2.8644033]
[1694041804205,0.52544605,25763.0,25762.0,2.87141241]
[1694041806616,0.29232959,25763.0,25762.0,2.87141241]
[1694041807951,0.19652294,25763.0,25762.0,2.87141241]
[1694041813901,0.33626711,25763.0,25762.0,2.87141241]
[1694041822033,0.33626711,25763.0,25762.0,3.28105768]
[1694041822234,0.14974417,25763.0,25762.0,3.28105768]
[1694041822883,0.14974417,25763.0,25762.0,4.40029768]
[1694041823089,0.24290373,25763.0,25762.0,4.40029768]
[1694041825636,0.10315956,25763.0,25762.0,4.40029768]
[1694041827703,0.10315956,25763.0,25762.0,3.28105768]
[1694041827974,0.10315956,25763.0,25762.0,4.40028774]
[1694041829702,0.10315956,25763.0,25762.0,3.28105768]
[1694041833051,0.10315956,25763.0,25762.0,4.4002761]
[1694041833260,0.01,25763.0,25762.0,4.4002761]
[1694041833782,0.10315956,25763.0,25762.0,4.4002761]
[1694041834010,0.10315956,25763.0,25762.0,4.3752761]
[1694041834186,0.10315956,25763.0,25762.0,4.3502761]
[1694041834399,0.10315956,25763.0,25762.0,4.35787046]
[1694041834621,0.10315956,25763.0,25762.0,4.39731676]
[1694041835780,0.01,25763.0,25762.0,4.39731676]
[1694041840338,0.00988943,25763.0,25762.0,4.39731676]
[1694041840542,0.00977886,25763.0,25762.0,4.39731676]
[1694041840922,0.00966829,25763.0,25762.0,4.39731676]
[1694041841302,0.00955772,25763.0,25762.0,4.39731676]
[1694041841543,0.00944715,25763.0,25762.0,4.39731676]
[1694041841956,0.00933658,25763.0,25762.0,4.39731676]
[1694041842359,0.00922601,25763.0,25762.0,4.39731676]
[1694041842759,0.00911544,25763.0,25762.0,4.39731676]
[1694041843098,0.00900487,25763.0,25762.0,4.39731676]
[1694041843409,0.0088943,25763.0,25762.0,4.39731676]
[1694041843659,0.00878373,25763.0,25762.0,4.39731676]
[1694041844062,0.00867316,25763.0,25762.0,4.39731676]
[1694041844474,0.00856259,25763.0,25762.0,4.45731676]
[1694041844849,0.00845202,25763.0,25762.0,4.45731676]
[1694041845190,0.00834145,25763.0,25762.0,4.45731676]
[1694041845578,0.00823088,25763.0,25762.0,4.45731676]
[1694041845776,0.00812031,25763.0,25762.0,4.45731676]
[1694041846228,0.00800974,25763.0,25762.0,4.45731676]
[1694041846605,0.00789917,25763.0,25762.0,4.45731676]
[1694041846847,0.0077886,25763.0,25762.0,4.45731676]
[1694041847061,0.09315956,25765.0,25764.0,0.03856094]
[1694041847282,0.09315956,25765.0,25764.0,3.67411021]
[1694041847484,0.09315956,25765.0,25764.0,3.97411021]
[1694041847703,0.09306025,25765.0,25764.0,4.0039739]
[1694041847941,0.09296094,25765.0,25764.0,4.0039739]
[1694041848433,0.09286163,25765.0,25764.0,4.0039739]
[1694041848643,0.09276232,25765.0,25764.0,4.0039739]
[1694041848851,0.09276232,25765.0,25764.0,4.0289739]
[1694041849096,0.09266301,25765.0,25764.0,4.0289739]
[1694041849339,0.0925637,25765.0,25764.0,4.0539739]
[1694041849712,0.09246439,25765.0,25764.0,4.0539739]
[1694041849968,0.30464417,25766.0,25764.0,4.0539739]
[1694041850167,0.30464417,25766.0,25765.0,0.18236094]
[1694041850444,0.30454486,25766.0,25765.0,2.51109894]
[1694041850656,0.13974417,25766.0,25765.0,2.51109894]
[1694041850839,0.13964486,25766.0,25765.0,2.54093032]
[1694041851005,0.13954555,25766.0,25765.0,2.54093032]
[1694041851394,0.13944624,25766.0,25765.0,2.54093032]
[1694041851858,0.13934693,25766.0,25765.0,2.56593032]
[1694041852099,0.13924762,25766.0,25765.0,2.56593032]
[1694041852549,0.13914831,25766.0,25765.0,2.56593032]
[1694041852756,0.139049,25766.0,25765.0,2.56593032]
[1694041853205,0.13894969,25766.0,25765.0,2.59093032]
[1694041853610,0.13885038,25766.0,25765.0,2.59093032]
[1694041853786,0.13875107,25766.0,25765.0,2.59093032]
[1694041854182,0.13865176,25766.0,25765.0,2.59093032]
[1694041854640,0.13855245,25766.0,25765.0,2.59093032]
[1694041854857,0.39111646,25768.0,25765.0,2.97757559]
[1694041854858,0.34452294,25768.0,25765.0,2.97757559]
[1694041855076,0.158,25768.0,25767.0,0.15936094]
[1694041855321,0.37382294,25769.0,25767.0,3.28710494]
[1694041855513,0.18652294,25769.0,25768.0,0.1208]
[1694041855857,0.28523496,25769.0,25768.0,2.449268]
[1694041856063,0.18652294,25769.0,25768.0,2.449268]
[1694041857292,0.18652294,25769.0,25768.0,2.474268]
[1694041857834,0.5854394,25770.0,25768.0,2.474268]
[1694041858030,0.5854394,25770.0,25769.0,2.449178]
[1694041858225,0.51758967,25770.0,25769.0,2.44801979]
[1694041859717,0.28447321,25770.0,25769.0,2.44801979]
[1694041860370,0.28447321,25770.0,25769.0,2.47301979]
[1694041860571,0.18652294,25770.0,25769.0,2.47301979]
[1694041860974,0.28407587,25770.0,25769.0,2.47301979]
[1694041861183,0.28407587,25770.0,25769.0,2.49801979]
[1694041861307,0.18652294,25770.0,25769.0,2.49801979]
[1694041863548,0.32599383,25770.0,25769.0,2.49801979]
[1694041864392,0.09298664,25770.0,25769.0,2.90766506]
[1694041864598,0.32599383,25771.0,25769.0,2.946226]
[1694041864599,0.09298664,25771.0,25769.0,2.946226]
[1694041864935,0.09298664,25771.0,25770.0,0.15936094]
[1694041865062,0.09298664,25771.0,25770.0,2.48764894]
[1694041865268,0.30417089,25772.0,25770.0,2.48764894]
[1694041865269,0.39715753,25772.0,25770.0,2.48764894]
[1694041865475,0.39715753,25772.0,25771.0,2.448998]
[1694041865669,0.23245753,25772.0,25771.0,2.448998]
[1694041866079,0.23235822,25772.0,25771.0,2.448998]
[1694041866494,0.23225891,25772.0,25771.0,2.448998]
[1694041867042,0.2321596,25772.0,25771.0,2.448998]
[1694041867204,0.09298664,25772.0,25771.0,2.448998]
[1694041867571,0.09288733,25772.0,25771.0,2.473998]
[1694041867982,0.09278802,25772.0,25771.0,2.473998]
[1694041868182,0.09268871,25772.0,25771.0,2.473998]
[1694041868611,0.0925894,25772.0,25771.0,2.473998]
[1694041869053,0.09249009,25772.0,25771.0,2.498998]
[1694041869414,0.09239078,25772.0,25771.0,2.498998]
[1694041869758,0.09229147,25772.0,25771.0,2.498998]
[1694041869960,0.09219216,25772.0,25771.0,2.498998]
[1694041870378,0.09209285,25772.0,25771.0,2.498998]
[1694041870764,0.09199354,25772.0,25771.0,2.498998]
[1694041871137,0.53552294,25774.0,25771.0,2.498998]
[1694041871342,0.53552294,25774.0,25773.0,0.1208]
[1694041871577,0.18652294,25774.0,25773.0,2.448815]
[1694041872997,0.18652294,25774.0,25773.0,2.498815]
[1694041873996,0.5196394,25775.0,25773.0,2.498815]
[1694041874195,0.5196394,25775.0,25774.0,1.67275]
[1694041874395,0.61533301,25775.0,25774.0,1.67275]
[1694041875204,0.61533301,25775.0,25774.0,1.69775]
[1694041875407,0.61533301,25775.0,25774.0,1.72275]
[1694041875814,0.51533301,25775.0,25774.0,1.72275]
[1694041876113,0.28221655,25775.0,25774.0,2.498725]
[1694041878550,0.32587753,25775.0,25774.0,2.498725]
[1694041879166,0.13935459,25775.0,25774.0,2.473725]
[1694041879583,0.13935459,25775.0,25774.0,2.498725]
[1694041879815,0.13935459,25775.0,25774.0,2.473725]
[1694041880013,0.13935459,25775.0,25774.0,2.498725]
[1694041880575,0.13935459,25775.0,25774.0,2.52667202]
[1694041887318,0.23226329,25775.0,25774.0,2.52667202]
[1694041887541,0.0929087,25776.0,25774.0,2.54967202]
[1694041887739,0.23226329,25777.0,25775.0,0.1208]
[1694041887966,0.13935459,25777.0,25776.0,3.22446]
[1694041888181,0.23226819,25777.0,25776.0,3.22446]
[1694041888394,0.13935459,25777.0,25776.0,3.22446]
[1694041888816,0.23227522,25777.0,25776.0,3.22446]
[1694041888986,0.23227522,25777.0,25776.0,3.34526]
[1694041888987,0.09292063,25777.0,25776.0,3.34526]
[1694041890039,0.09292063,25777.0,25776.0,3.37026]
[1694041890197,0.09292063,25777.0,25776.0,3.34526]
[1694041890404,0.09292063,25777.0,25776.0,3.37026]
[1694041890598,0.09292063,25777.0,25776.0,3.39526]
[1694041890972,0.09292063,25777.0,25776.0,3.37026]
[1694041890973,0.09287928,25777.0,25776.0,3.37026]
[1694041891144,0.09287928,25777.0,25776.0,3.39526]
[1694041892121,0.2321982,25778.0,25776.0,3.39526]
[1694041892347,0.13931892,25778.0,25777.0,0.1208]
[1694041892505,0.13931892,25778.0,25777.0,2.448455]
[1694041892506,0.23218414,25778.0,25777.0,2.448455]
[1694041892718,0.13931892,25778.0,25777.0,2.448455]
[1694041892922,0.23219024,25778.0,25777.0,2.448455]
[1694041893737,0.23219024,25778.0,25777.0,2.473455]
[1694041894561,0.23219024,25778.0,25777.0,2.498455]
[1694041895207,0.23219024,25778.0,25777.0,2.52636383]
[1694041896874,0.23219024,25778.0,25777.0,2.54936383]
[1694041897232,0.09287132,25778.0,25777.0,2.54936383]
[1694041897999,0.23219024,25778.0,25777.0,2.54936383]
[1694041898196,0.09287132,25778.0,25777.0,2.54936383]
[1694041898882,0.23219024,25778.0,25777.0,2.54936383]
[1694041900549,0.23219024,25778.0,25777.0,0.22170883]
[1694041900894,0.13931892,25778.0,25777.0,0.22170883]
[1694041901093,0.23220893,25778.0,25777.0,0.22170883]
[1694041901947,0.13931892,25778.0,25777.0,0.22170883]
[1694041902146,0.23220699,25778.0,25777.0,0.22170883]
[1694041903012,0.13931892,25778.0,25777.0,0.22170883]
[1694041904256,0.2322214,25778.0,25777.0,0.22170883]
[1694041904965,0.13931892,25778.0,25777.0,0.22170883]
[1694041908598,0.09293466,25778.0,25777.0,0.6083541]
[1694041909007,0.09293466,25778.0,25777.0,0.64678051]
[1694041909552,0.09293466,25778.0,25777.0,0.59678051]
[1694041909784,0.09293466,25778.0,25777.0,0.64678051]
[1694041910316,0.09293466,25778.0,25777.0,0.62178051]
[1694041910502,0.09293466,25778.0,25777.0,0.59678051]
[1694041910896,0.09293466,25778.0,25777.0,0.62178051]
[1694041911733,0.23225358,25779.0,25777.0,0.64678051]
[1694041911933,0.23225358,25779.0,25778.0,0.1208]
[1694041912141,0.23225358,25779.0,25778.0,0.1438]
[1694041912339,0.23225358,25779.0,25778.0,0.1716721]
[1694041913339,0.23225358,25779.0,25778.0,0.1966721]
[1694041914862,0.13931892,25779.0,25778.0,0.2216721]
[1694041915053,0.13931892,25779.0,25778.0,0.0778721]
[1694041915054,0.37947502,25779.0,25778.0,0.0778721]
[1694041915254,0.48304977,25779.0,25778.0,0.0778721]
[1694041917264,0.71524797,25779.0,25778.0,0.0778721]
[1694041918978,0.52948941,25779.0,25778.0,0.0778721]
[1694041924226,0.29729121,25779.0,25778.0,0.0778721]
[1694041927619,0.29729121,25779.0,25778.0,0.1986721]
[1694041927620,0.4184101,25779.0,25778.0,0.1986721]
[1694041927776,0.28953449,25779.0,25778.0,0.1986721]
[1694041929158,0.52198485,25779.0,25778.0,0.1986721]
[1694041931208,0.33602511,25779.0,25778.0,0.1986721]
[1694041949139,0.10357475,25779.0,25778.0,0.1986721]
[1694041951444,0.33620745,25779.0,25778.0,0.1986721]
[1694041952257,0.10357475,25779.0,25778.0,0.1986721]
[1694041953616,0.23264793,25779.0,25778.0,0.1986721]
[1694041960726,0.23264793,25779.0,25778.0,0.58531737]
[1694041960954,0.23264793,25779.0,25778.0,0.60831737]
[1694041962246,0.33622268,25779.0,25778.0,0.60831737]
[1694041962590,0.23264793,25779.0,25778.0,0.60831737]
[1694041965148,0.23264793,25779.0,25778.0,0.64660925]
[1694041965866,0.41879133,25779.0,25778.0,0.62160925]
[1694041966442,0.41879133,25779.0,25778.0,0.64660925]
[1694041966665,0.41879133,25779.0,25778.0,0.62160925]
[1694041967108,0.41879133,25779.0,25778.0,0.64660925]
[1694041968853,0.23264793,25779.0,25778.0,0.64660925]
[1694041970672,0.18615992,25779.0,25778.0,0.64660925]
[1694041970879,0.32577645,25779.0,25778.0,0.64660925]
[1694041971099,0.23269558,25780.0,25778.0,1.8859336]
[1694041971301,0.23269558,25780.0,25779.0,0.56873715]
[1694041971481,0.09307905,25780.0,25779.0,2.0272615]
[1694041971732,0.09307905,25780.0,25779.0,2.05441866]
[1694041972344,0.23289726,25781.0,25779.0,2.05441866]
[1694041972547,0.09328073,25781.0,25780.0,1.57761623]
[1694041972751,0.09328073,25781.0,25780.0,0.86873715]
[1694041972954,0.09328073,25781.0,25780.0,1.98717491]
[1694041973339,0.00020168,25781.0,25780.0,1.98717491]
[1694041974683,0.00020168,25781.0,25780.0,0.86873715]
[1694041974969,0.00020168,25781.0,25780.0,0.91873715]
[1694041975162,0.00020168,25781.0,25780.0,2.03715573]
[1694041975736,0.00020168,25781.0,25780.0,0.91873715]
[1694041976101,0.00020168,25781.0,25780.0,0.89373715]
[1694041976304,0.00020168,25781.0,25780.0,0.86873715]
[1694041976432,0.00020168,25781.0,25780.0,0.89373715]
[1694041976632,0.00020168,25781.0,25780.0,0.86873715]
[1694041977235,0.00020168,25781.0,25780.0,0.89373715]
[1694041977448,0.08828073,25783.0,25780.0,0.89373715]
[1694041977668,0.08828073,25783.0,25782.0,0.15909188]
[1694041977866,0.08828073,25783.0,25782.0,0.56873715]
[1694041978244,0.13961653,25784.0,25782.0,0.56873715]
[1694041978472,0.13961653,25784.0,25783.0,0.56873715]
[1694041979166,0.52825388,25785.0,25783.0,0.56873715]
[1694041979368,0.52825388,25785.0,25784.0,0.1208]
[1694041981403,0.52825388,25785.0,25784.0,0.1458]
[1694041981759,0.52825388,25785.0,25784.0,0.1708]
[1694041981970,0.34209396,25785.0,25784.0,0.1708]
[1694041983956,0.52825388,25785.0,25784.0,0.1708]
[1694041985005,0.32577645,25785.0,25784.0,0.1708]
[1694041985210,0.13961653,25785.0,25784.0,0.19791442]
[1694041987803,0.09289024,25785.0,25784.0,0.19791442]
[1694041991105,0.64240248,25786.0,25784.0,0.19791442]
[1694041991307,0.54951224,25786.0,25785.0,0.1208]
[1694041991530,0.39181224,25786.0,25785.0,0.1208]
[1694041992187,0.48468385,25786.0,25785.0,0.1208]
[1694041993032,0.48468385,25786.0,25785.0,0.1458]
[1694041993931,0.48468385,25786.0,25785.0,0.1708]
[1694041994134,0.39181224,25786.0,25785.0,0.1708]
[1694041994341,0.48469548,25786.0,25785.0,0.1708]
[1694041995265,0.48469553,25786.0,25785.0,0.1708]
[1694041997175,0.23249982,25786.0,25785.0,0.1708]
[1694041997645,0.09288329,25786.0,25785.0,0.1708]
[1694041997825,0.09288329,25787.0,25785.0,0.20909188]
[1694041997959,0.09288329,25787.0,25786.0,0.1208]
[1694042000301,0.09288329,25787.0,25786.0,0.14789758]
[1694042000507,0.09288329,25787.0,25786.0,0.17289758]
[1694042000709,0.09288329,25787.0,25786.0,0.19789758]
[1694042001076,0.09288329,25787.0,25786.0,0.58454285]
[1694042001277,0.09288329,25787.0,25786.0,0.60754285]
[1694042013001,0.23249982,25787.0,25786.0,0.60754285]
[1694042014360,0.13961653,25787.0,25786.0,0.60754285]
[1694042014608,0.13961653,25787.0,25786.0,3.70999885]
[1694042016259,0.32577645,25787.0,25786.0,3.70999885]
[1694042016619,0.13961653,25787.0,25786.0,3.70999885]
[1694042016836,0.13961653,25787.0,25786.0,3.74829073]
[1694042017281,0.32577645,25787.0,25786.0,3.74829073]
[1694042017580,0.13961653,25787.0,25786.0,3.74829073]
[1694042017714,0.13961653,25787.0,25786.0,3.72329073]
[1694042017942,0.13961653,25787.0,25786.0,3.74829073]
[1694042018342,0.13961653,25787.0,25786.0,3.69829073]
[1694042018728,0.13961653,25787.0,25786.0,3.74829073]
[1694042019127,0.13961653,25787.0,25786.0,3.72329073]
[1694042019492,0.13961653,25787.0,25786.0,3.74829073]
[1694042022385,0.23266615,25787.0,25786.0,4.04829073]
[1694042024068,0.13961653,25787.0,25786.0,4.04829073]
[1694042024298,0.23266427,25787.0,25786.0,4.04829073]
[1694042027062,0.13961653,25787.0,25786.0,4.04829073]